Cogmind - Beta 16.1 @@@ ROGUE MODE // 2026.04.20 @ 11:41:23 Player: Maelyn Result: Destroyed by as-45638 with Assembled Heavy Rifle Performance ------------- Evolutions (0) 0 Regions Visited (2) 400 Robots Destroyed (14) 70 Value Destroyed (200) 200 Prototype IDs (0) 0 Alien Tech Used (0) 0 Bonus (113) 113 TOTAL SCORE: 783 Bonus ------- Follower Combat Kills 113 Cogmind --------- Core Integrity 0/250 Matter 31/300 Energy 99/100 System Corruption 0% Temperature Cool (0) Movement Core (400) Ox7 Location -10/Mines Parts ------- > --- POWER (1) -------- (None) > --- PROPULSION (2) --- (None) > --- UTILITY (2) ------ Large Storage Unit > --- WEAPON (2) ------- Mini Grenade Launcher Makeshift Axe > --- INVENTORY (15) --- Aluminum Leg Aluminum Leg Improved Hover Unit Improved Hover Unit Improved Hover Unit Improved Hover Unit Medium Storage Unit EM Pulse Gun Medium Laser Assault Rifle Heavy Assault Rifle Mining Laser Peak State ------------ > --- POWER ------------ Ion Engine > --- PROPULSION ------- Light Treads Light Treads > --- UTILITY ---------- Large Storage Unit Hardened Light Armor Plating > --- WEAPON ----------- Mini Grenade Launcher Makeshift Axe > --- INVENTORY -------- Aluminum Leg Aluminum Leg Improved Hover Unit Improved Hover Unit Improved Hover Unit Improved Hover Unit Medium Storage Unit EM Pulse Gun Medium Laser Assault Rifle Heavy Assault Rifle Mining Laser [Rating: 13] Favorites ----------- Power Ion Engine Engine Ion Engine Propulsion Light Treads Treads Light Treads Utility Large Storage Unit Storage Large Storage Unit Protection Hardened Light Armor Plating Weapon Heavy Assault Rifle Energy Gun Medium Laser Ballistic Gun Heavy Assault Rifle Launcher Mini Grenade Launcher Slashing Weapon Makeshift Axe Build | -11 -10 -10 ------- Run | Yrd Mat Min Slots Evolved . | . . . Power . | . . . Propulsion . | . . . Utility . | . . . Weapon . | . . . Parts Attached 13 | 6 4 3 Power 2 | 1 . 1 Engine 2 | 1 . 1 Core . | . . . Reactor . | . . . Propulsion 2 | 2 . . Treads 2 | 2 . . Leg . | . . . Wheel . | . . . Hover . | . . . Flight . | . . . Utility 3 | 1 2 . Device . | . . . Storage 2 | 1 1 . Processor . | . . . Hackware . | . . . Protection 1 | . 1 . Artifact . | . . . Weapon 6 | 2 2 2 Energy Gun 1 | 1 . . Energy Cannon . | . . . Ballistic Gun 3 | 1 2 . Ballistic Cannon . | . . . Launcher 1 | . . 1 Special Weapon . | . . . Impact Weapon . | . . . Slashing Weapon 1 | . . 1 Piercing Weapon . | . . . Special Melee Weapon . | . . . Unidentified Prototypes . | . . . Parts Lost 6 | . . 6 Power 2 | . . 2 Propulsion 2 | . . 2 Utility 1 | . . 1 Weapon 1 | . . 1 Highest Loss Streak 5 | . . 5 To Critical Strikes . | . . . Average Backups 11 | 3 9 12 Power . | . 1 . Propulsion 5 | 1 5 6 Utility . | . . 1 Weapon 4 | 1 2 4 Tool/Special . | . . . Unused Backups 9 | . . 9 Power . | . . . Propulsion 6 | . . 6 Utility 1 | . . 1 Weapon 2 | . . 2 Tool/Special . | . . . Average Slot Usage (%) 95 | . 97 94 Engine 13 | . 14 12 Treads 26 | . 28 25 Storage 14 | . 14 14 Protection 12 | . 11 12 Ballistic Gun 21 | . 25 20 Launcher 4 | . . 5 Slashing Weapon 1 | . . 1 Peak Build Rating 13 | 6 11 13 Average Rating 10 | 4 10 11 On Entrance 5 | . 6 11 Avg Prop Armor Cover (%) . | . . . Naked Turns . | . . . Heaviest Build 36 | 14 36 36 Greatest Support 40 | 40 40 40 Greatest Overweight (x) 7 | 3 . 7 Average Overweight (x) . | . . . Largest Inventory Capacity 15 | 8 15 15 Average Capacity 14 | 7 14 15 Most Carried 13 | 6 11 13 Average Carried 11 | 3 9 12 Final Capacity 15 | 8 15 15 Final Carried 12 | 4 11 12 Class Distribution -------------------- 100% | Mutant Dominant Class ---------------- Mutant | -10/Materials Mutant | -10/Mines Resources | -11 -10 -10 ----------- Run | Yrd Mat Min Matter Collected 302 | 184 13 105 Remotely . | . . . Salvage Created 379 | . 200 179 Parts 23 | . 7 16 Haulers Intercepted . | . . . Recyclers Shooed . | . . . Parts Field Recycled . | . . . Retrieved Matter . | . . . Parts Self-Destructed . | . . . Prevented . | . . . Parts Restored . | . . . Kills | -11 -10 -10 ------- Run | Yrd Mat Min Combat Hostiles Destroyed 18 | . 2 16 Guns 12 | . 2 10 AOE 6 | . . 6 Classes Destroyed 5 | . 3 2 Recycler 1 | . 1 . Operator 1 | . 1 . Swarmer 10 | . . 10 Grunt 2 | . 2 . Assembled 6 | . . 6 Best Kill Streak 4 | . 3 4 Combat Bots Only 4 | . 2 4 Max Kills in Single Turn 2 | . 1 2 Gunslinging . | . . . Exploded 2 | . . 2 Melee . | . . . Uniques/NPCs Destroyed . | . . . Combat | -11 -10 -10 -------- Run | Yrd Mat Min Hostile Shots Fired 95 | . 16 79 Missed 17 | . 1 16 Hits 78 | . 15 63 Melee 3 | . . 3 Projectile 75 | . 15 60 AOE 7 | . . 7 Damage Taken 1131 | . 164 967 Core 257 | . 56 201 Absorbed by Shields . | . . . Core Remaining (%) 100 | 100 . . Volleys Fired 40 | . 13 27 Largest 2 | . 2 2 Hottest 53 | . 46 53 Shots Fired 75 | . 26 49 Gun 68 | . 26 42 Cannon . | . . . Launcher 7 | . . 7 Special . | . . . Kinetic 68 | . 26 42 Thermal . | . . . Explosive 7 | . . 7 Electromagnetic . | . . . Robot Hit Streak 13 | . 13 5 Robot Miss Streak 4 | . 4 3 Penetration Max . | . . . Secondary Targets 4 | . . 4 Max Gunslinging Chain 1 | . . 1 Shots Hit Robots 45 | . 18 27 Core Hits 24 | . 6 18 Critical Kills . | . . . Critical Parts Destroyed . | . . . Critical Strikes . | . . . Melee Attacks 2 | . . 2 Impact . | . . . Slashing 2 | . . 2 Piercing . | . . . Sneak Attacks . | . . . Combat Hostiles . | . . . Follow-up Attacks . | . . . Damage Inflicted 1027 | . 288 739 Guns 633 | . 288 345 Cannons . | . . . Explosions 386 | . . 386 Melee . | . . . Ramming 8 | . . 8 Kinetic 633 | . 288 345 Thermal . | . . . Explosive 386 | . . 386 Electromagnetic . | . . . Impact . | . . . Slashing . | . . . Piercing . | . . . Highest Corruption . | . . . Average Corruption . | . . . Corruption Purged . | . . . Corruption Blocked . | . . . Overload Shots . | . . . Overflow Damage 17 | . . 17 Projectiles . | . . . Explosions 17 | . . 17 Melee . | . . . Knockbacks . | . . . Impact . | . . . Kinetic . | . . . Secondary . | . . . Self-Inflicted Damage 98 | . . 98 Shots 3 | . . 3 Rammed 1 | . . 1 Targets Rammed 1 | . . 1 Kicked . | . . . Crushed . | . . . Highest Temperature 66 | . 66 12 Average Temperature 25 | . 34 5 Received Heat Transfer 102 | . 90 12 Siege Activations . | . . . Martial Activations . | . . . Shielding Activations . | . . . Robots Disrupted . | . . . Combat Hostiles . | . . . Robots Corrupted . | . . . Combat Hostiles . | . . . Parts Fried . | . . . Impact Corruptions . | . . . Robots Melted . | . . . Combat Hostiles . | . . . Parts Melted . | . . . Heat Transferred . | . . . Parts Sabotaged . | . . . Parts Stolen . | . . . Parts Stripped . | . . . Power Chain Reactions . | . . . Alert | -11 -10 -10 ------- Run | Yrd Mat Min Maximum Alert Level . | . . . Low Security (%) 100 | 100 100 100 Level 1 . | . . . Level 2 . | . . . Level 3 . | . . . Level 4 . | . . . Level 5 . | . . . High Security . | . . . Max Security . | . . . Peak Influence 154 | . 56 154 Initial 9 | . . 9 Average 56 | . 11 70 Influence Increases 498 | . 62 436 Destroy 0b10 Robot/C 340 | . 40 300 Destroy 0b10 Robot/NC 15 | . 10 5 Destroy Leader 60 | . 10 50 Allied During Kill 8 | . . 8 Disable Machine 15 | . . 15 Destroy Structure 60 | . 2 58 Influence Decreases 498 | . 36 462 Entered New Map 17 | . . 17 Time Decay 427 | . 36 391 Lost Part 54 | . . 54 Squads Dispatched 2 | . 2 . Investigation . | . . . Extermination . | . . . Reinforcement 2 | . 2 . Assault . | . . . Garrison . | . . . Intercept . | . . . Searches Triggered . | . . . Construction Impeded . | . . . Haulers Reinforced . | . . . Active Scanning Responses . | . . . Cargo Convoy Interrupts . | . . . Stealth | -11 -10 -10 --------- Run | Yrd Mat Min Distress Signals 1 | . 1 . Communications Jammed . | . . . Distress Signals . | . . . Times Spotted 31 | . 6 25 Peak Tracking Total 4 | . 3 4 Tactical Retreats 1 | . . 1 Traps | -11 -10 -10 ------- Run | Yrd Mat Min Traps Triggered . | . . . Indirectly . | . . . Trap Hack Attempts . | . . . Triggered . | . . . Disarmed . | . . . Reprogrammed . | . . . Reused . | . . . Traps Extracted . | . . . Installed . | . . . Triggered . | . . . Machines | -11 -10 -10 ---------- Run | Yrd Mat Min Machines Disabled 1 | . . 1 Max in Single Turn 1 | . . 1 Machines Repaired . | . . . Machines Dismantled . | . . . Machines Sabotaged . | . . . Overloaded Fab Kills . | . . . Hacking | -11 -10 -10 --------- Run | Yrd Mat Min Machines Accessed . | . . . Terminals . | . . . Fabricators . | . . . Repair Stations . | . . . Recycling Units . | . . . Scanalyzers . | . . . Garrison Access . | . . . Total Hacks . | . . . Successful . | . . . Failed . | . . . Catastrophic . | . . . Database Lockouts . | . . . Manual . | . . . Terminals . | . . . Fabricators . | . . . Repair Stations . | . . . Recycling Units . | . . . Scanalyzers . | . . . Garrison Access . | . . . Terminal Hacks . | . . . Fabricator Hacks . | . . . Repair Station Hacks . | . . . Recycling Unit Hacks . | . . . Scanalyzer . | . . . Garrison Access Hacks . | . . . Unauthorized Hacks . | . . . Terminals . | . . . Fabricators . | . . . Repair Stations . | . . . Recycling Units . | . . . Scanalyzers . | . . . Garrison Access . | . . . Data Cores Recovered . | . . . Used . | . . . Hacking Detections . | . . . Full Trace Events . | . . . Feedback Events . | . . . Feedback Blocked . | . . . Robot Schematics Acquired . | . . . Robots Built . | . . . Authchips . | . . . Time . | . . . Total Robot Build Rating . | . . . Part Schematics Acquired . | . . . Parts Built . | . . . Authchips . | . . . Time . | . . . Total Part Build Rating . | . . . Part Studies Acquired . | . . . Parts Repaired . | . . . Time . | . . . Parts Recycled . | . . . Recycled Matter . | . . . Retrieved Matter . | . . . Retrieved Components . | . . . Parts Scanalyzed . | . . . Part Schematics Acquired . | . . . Parts Damaged . | . . . Bothacking | -11 -10 -10 ------------ Run | Yrd Mat Min Used RIF Installer . | . . . Robots Hacked . | . . . Non-combat . | . . . Combat . | . . . Robot Hacks Applied . | . . . Relay Couplers Released . | . . . Fabnet Peak Effective % . | . . . Robots Rewired . | . . . Allies Hacked . | . . . Hacks Repelled . | . . . Allies | -11 -10 -10 -------- Run | Yrd Mat Min Total Allies 1 | . . 1 Largest Group 1 | . . 1 Highest-Rated Group 31 | . . 31 Highest-Rated Ally 31 | . . 31 Total Orders . | . . . Ally Attacks 19 | . . 19 Total Damage 311 | . . 311 Kills 6 | . . 6 Allies Corrupted . | . . . Allies Melted . | . . . Intel | -11 -10 -10 ------- Run | Yrd Mat Min Active Infowar (turns) . | . . . Robot Analysis Total . | . . . Derelict Logs Recovered 1 | . . 1 Drone Launches . | . . . Drone Recoveries . | . . . Exploration | -11 -10 -10 ------------- Run | Yrd Mat Min Turns Passed 1301 | 73 233 995 Spaces Moved 688 | 39 110 539 Core 32 | 12 . 20 Treads 656 | 27 110 519 Legs . | . . . Wheels . | . . . Hover . | . . . Flight . | . . . Fastest Speed 50 | 50 160 160 Average Speed 166 | 153 160 169 Slowest Speed 400 | 200 160 400 Overloaded Moves . | . . . Propulsion Burnouts . | . . . Robots Hopped . | . . . Potential Cave-ins . | . . . Cave-ins Triggered . | . . . Exploration Rate (%) 36 | 4 25 81 Regions Visited 2 Branch Regions 1 Pre-discovered Areas . | . . . Known Exits Taken . | . . . Unknown Exits Taken 2 | 1 1 . Scrap Searched 1 | . . 1 Spaces Dug . | . . . Terrain Destroyed 76 | . . 76 Melee . | . . . Projectile . | . . . AOE 76 | . . 76 Terrain Rammed . | . . . Walls Destroyed . | . . . Machines Disabled . | . . . Actions | -11 -10 -10 --------- Run | Yrd Mat Min Total 766 | 50 141 575 Wait 7 | . 7 . Move 686 | 38 109 539 Hop . | . . . Pick Up 13 | 6 5 2 Fast Attach 8 | 4 3 1 Attach 4 | 2 . 2 Detach 3 | . 2 1 Swap 1 | . 1 . Drop 1 | . 1 . Fire 40 | . 13 27 Melee 2 | . . 2 Ram . | . . . Kick . | . . . Crush 1 | . . 1 Escape Stasis . | . . . Rewire . | . . . Trap . | . . . Miscellaneous . | . . . Route ------- -11/Scrapyard -10/Materials (discovered 2 exits: [*Mat] / [*Min]) -10/Mines (discovered 3 exits: [*Mat x2] / [*Sub]) History --------- Turn | Location | Event 6 | -11/Scrapyard | Discovered new exit (range 16) 74 | -11/Scrapyard | Entered Materials 269 | -10/Materials | Discovered new exit (range 9) 283 | -10/Materials | Discovered new exit (range 16) 301 | -10/Materials | Build established: Mutant 307 | -10/Materials | Entered Mines 338 | -10/Mines | Learned Materials emergency access door positions 365 | -10/Mines | Discovered new exit (range 8) 523 | -10/Mines | A weapon hastily lodged in a ceiling crevice suddenly fell to the ground 681 | -10/Mines | Discovered new exit (range 4) 726 | -10/Mines | Discovered new exit (range 5) 729 | -10/Mines | Received a Mining Laser from a helpful Derelict 844 | -10/Mines | Assembled infested the area 873 | -10/Mines | Core integrity fell below 50% 1225 | -10/Mines | Core integrity fell below 20% 1255 | -10/Mines | Lost 5 parts (1p2n1u1w) 1302 | -10/Mines | Destroyed by as-45638 with Assembled Heavy Rifle Last Messages --------------- 00990_ K-01 Serf collects debris. 01125_ as-69606 destroyed. 01161_ as-15757 destroyed. 01164_ Destroyed Asb. F-torch. 01164_ as-15838 destroyed. 01166_ R-06 Scavenger destroyed. 01178_ The unstable cave ceiling collapses. 01178_ Imp. Terrain Scanner crushed. 01192_ The unstable cave ceiling collapses. 01198_ Hvy. Assault Rifle destroyed. 01200_ as-11199 destroyed. 01200_ as-06682 destroyed. 01205_ The unstable cave ceiling collapses. 01218_ Lgt. Treads destroyed. 01218_ Hrd. Light Armor Plating destroyed. 01224_ Lgt. Treads destroyed. 01224_ Ion Engine destroyed. 01228_ Destroyed Asb. Blade. 01228_ as-40408 destroyed. 01234_ The unstable cave ceiling collapses. Map ----- +----------------------------------------------------+ | ##### #?????? #?????????????????? | | #???## ##??????# #?????????????????? | | #????### ##???????# #?????????????????? | | ##????## ##????????# ##????????????????? | | #?????# ##????????# # #????????????????? | | ####??# ##??????## #????????????????? | | #??# ######## ##???????????????? | | #??# * %% #???????????????? | | ### #??# % #???????????????? | | ??# #??# ## ### # ##??????????????? | | ??# #### ## #?# # #??????????????? | | ??# ### ### # # a ## #??????????????? | | ??# ###?# * ## % #??????????????? | | ??######## ##???# ###### #??????????????? | | ???????? #??# #????### # #??????????????? | | ???????% #??# #????##= ###??????????????? | | ?????? #??# #????# %* #????????????????? | | ???? =%* #??# #????## #?#??#???????????? | | ??? ! #??# #????# ### ##?##???????? | | ???"" """ """ #### #????# ##### ### ??????? | | ????" """ """ #??### ###### ??????? | | ????"???" """ ######??# ## ?????? | | ????????" ??? #???????## # ###### | | ???????? ??? #???????## % | | ????????##????????????# #?? """ | | ???????????############ @ ##?????? """ ####### | | ???????????# # ##????? """ ##??????? | | ???????????# ####### ## ##???? ???????### | | ???????????# #?????# ### #??? ###????????? | | ???????????# #?????# #?## #??#????????????##?? | | ???????????# ##????# #??# ##???????????????#T | | ??????????## ##???# #??##=%##??????????##?#???# | | ?????????## #???# #???# ######??????# # ## # | | ????????## #???# ##### ### ####### # # | | ???????## ##???# = [ | | ???????# ##????####### [ | % % | | ##?????# ##???????????#### ##### *= | | ###?## ##??????????????# # #?????## ## %= | | ### ##??#####????????## # #??????????# | | ##?## ###???????# #?????????# = | | ### ##??????# ########### | | ## ##?????### ## " | | ###?????# ## #???? " | | ## ## ###??## ## ## #???# " | | #### #### #### ## ## #??## | | ##?#####??### ##=%= ## #### | | #??????????#### %=* ## | | #????????????## %= # ### | | #?????????????## ##### ##?? | | #?????????????## ##???# ##?? | +----------------------------------------------------+ Best States ------------- Heat Dissipation 25 Energy Generation 10 Energy Capacity 250 Matter Stores 224 Matter Capacity 300 Sight Range 16 Terrain Scan Density 10 Armor Coverage 150 Evasion (%) 40 Recoil Reduction 2 Item Schematics ----------------- None Robot Schematics ------------------ None Fabricated ------------ Nothing Repaired ---------- Nothing Studied --------- None Alien Tech Used ----------------- None Achievements -------------- None Challenges ------------ None Game ------ Seed HardlightBombardmentBarrier Manual? 0 Play Time 00:07:20 Cumulative 65.8 hours Start 2026.04.20 @ 11:34:24 End 2026.04.20 @ 11:41:23 Sessions 1 Manual Loads 0 Difficulty Rogue Special Mode None Game No. 129 Rogue 129 Adventurer 0 Explorer 0 Win Type - Total 0 Types 0/0/0/0/0/0/0/0/0/0 Lore% 15 Gallery% 33 Achievement% 22 Wizard Run 0 Options --------- Layout 0 ASCII 0 Keyboard 1 Movement Vi Keybinds 0 Fullscreen 2 Font 18/T_Terminus Map View 76x50 Zoom Use 0% Tactical HUD 1 Map Filters SHIFT_HUE(5) Filters LOW_CONTRAST(10,2,20)|SHIFT_HUE(5) Steam 1 RUN: 2d4d6550-2ff8-40ee-a8c3-1327a5ed9927